bitfinex/quotes_ETHUSD_20260126
["timestamp","ask_amount","ask_price","bid_price","bid_amount"]
[1769419600486,0.001,2889.8,2888.7,13.05687466]
[1769419600688,1.3765716,2889.8,2888.7,14.52161176]
[1769419606828,0.001,2889.8,2888.7,14.52161176]
[1769419609092,0.001,2889.8,2888.3,0.00397284]
[1769419609093,12.88866412,2889.6,2888.3,0.00397284]
[1769419609730,12.86446193,2889.5,2888.3,0.00397284]
[1769419609899,12.86446193,2889.3,2888.3,0.00397284]
[1769419610226,14.15332834,2889.2,2888.3,0.00397284]
[1769419611233,15.01864477,2889.2,2888.3,0.00397284]
[1769419611609,14.15332834,2889.2,2888.3,0.00397284]
[1769419612226,15.01862136,2889.2,2888.5,0.002]
[1769419612842,15.01862136,2889.2,2888.5,0.001]
[1769419613124,12.86446193,2889.0,2888.5,0.001]
[1769419615307,12.86446193,2889.0,2888.3,0.002977]
[1769419615506,1.84796717,2889.1,2888.3,0.002977]
[1769419615708,0.86529943,2889.2,2888.3,13.05985166]
[1769419616127,13.72976136,2889.2,2888.3,13.05985166]
[1769419616744,13.72976136,2889.2,2888.3,0.002977]
[1769419617238,13.72976136,2889.2,2888.3,0.0014885]
[1769419617403,12.86446193,2889.2,2887.9,13.92152169]
[1769419617733,1.71908105,2889.1,2887.9,13.92152169]
[1769419619441,1.71908105,2889.1,2887.9,13.05585582]
[1769419619742,1.71908105,2889.1,2887.9,13.92152197]
[1769419619941,12.86446193,2889.3,2887.9,13.92152197]
[1769419620639,7.21519306,2889.6,2887.9,13.92152197]
[1769419620840,7.21519306,2889.6,2888.1,13.05687466]
[1769419621846,7.21519306,2889.6,2888.3,13.05687466]
[1769419622071,6.35,2889.6,2888.3,13.05687466]
[1769419622210,0.001,2889.8,2888.5,13.05687466]
[1769419622409,0.001,2889.8,2888.7,13.05687466]
[1769419622718,0.001,2889.8,2888.9,13.05687466]
[1769419623736,0.001,2889.8,2889.1,13.05687466]
[1769419623938,0.001,2890.0,2889.2,13.05687466]
[1769419624112,0.001,2890.0,2889.0,0.86535133]
[1769419624113,0.001,2890.0,2889.4,13.05687466]
[1769419626420,0.001,2890.0,2889.4,13.92210552]
[1769419626749,0.02420219,2890.8,2889.5,12.11700601]
[1769419626949,0.88901797,2890.8,2889.5,12.11700601]
[1769419627530,12.75482117,2890.7,2889.5,12.11700601]
[1769419627857,1.36438391,2890.6,2889.5,13.54579982]
[1769419628448,0.02420219,2890.8,2889.7,12.11700601]
[1769419629749,6.35,2890.9,2889.7,12.11700601]
[1769419630046,6.6195046,2891.0,2889.7,12.11700601]
[1769419630555,6.6195046,2891.0,2889.9,12.11700601]
[1769419633830,6.6195046,2891.0,2889.9,12.98208465]
[1769419634048,6.6195046,2891.0,2890.1,12.11700601]
[1769419634049,0.66205046,2890.9,2890.1,12.11700601]
[1769419635922,0.02420219,2890.5,2889.5,13.54579982]
[1769419636123,0.66205046,2890.9,2889.9,12.11700601]
[1769419637061,13.41687163,2890.9,2889.9,12.11700601]
[1769419637226,14.3058597,2890.9,2889.9,12.11700601]
[1769419637426,12.75582117,2890.7,2889.7,0.002]
[1769419638226,12.75582117,2890.7,2889.7,12.45050476]
[1769419638427,0.001,2890.7,2889.7,12.45050476]
[1769419638727,0.001,2890.7,2889.7,13.3156387]
[1769419640072,0.001,2890.7,2889.9,12.44850476]
[1769419640276,0.001,2890.7,2890.1,12.44850476]
[1769419644241,0.001,2890.7,2890.1,13.31351524]
[1769419644663,0.001,2890.7,2890.1,12.44850476]
[1769419647379,0.001,2890.7,2889.9,13.17350476]
[1769419648753,0.001,2890.7,2889.9,12.44850476]
[1769419648957,1.31671189,2890.6,2889.7,12.45050476]
[1769419649169,14.50703294,2890.6,2889.7,0.002]
[1769419649368,13.16611886,2890.3,2889.7,0.002]
[1769419650781,13.16611886,2890.1,2889.2,0.72300519]
[1769419652371,13.16611886,2890.1,2888.9,12.44850476]
[1769419652576,14.57165214,2890.0,2888.9,12.44850476]
[1769419652779,14.57165214,2890.0,2888.9,13.31388329]
[1769419652980,14.57165214,2890.0,2888.9,12.44850476]
[1769419654648,14.57165214,2890.0,2888.7,0.86543912]
[1769419654862,14.57165214,2890.0,2888.6,12.9847312]
[1769419654863,15.46090894,2890.0,2888.6,12.9847312]
[1769419655181,13.36954983,2889.8,2888.6,13.85019893]
[1769419655749,13.36954983,2889.8,2888.6,12.9847312]
[1769419656383,13.36954983,2889.8,2888.6,13.85020077]
[1769419656572,13.36954983,2889.8,2888.6,12.9847312]
[1769419658053,13.36954983,2889.8,2888.6,13.85020101]
[1769419658368,1.53341511,2889.7,2888.6,12.9847312]
[1769419658574,1.53341511,2889.7,2888.6,13.8501994]
[1769419658787,0.725,2890.2,2888.8,12.2597312]
[1769419658986,0.725,2890.2,2889.0,12.2597312]
[1769419661212,13.36954983,2890.4,2889.2,12.2597312]
[1769419661355,19.71954983,2890.3,2889.2,12.2597312]
[1769419661562,2.04445498,2890.2,2889.2,12.2597312]
[1769419661856,13.37054983,2890.5,2889.2,12.2597312]
[1769419661857,0.001,2890.5,2889.2,12.2597312]
[1769419663281,0.001,2890.5,2889.4,12.2597312]
[1769419664662,13.39475202,2890.5,2889.1,13.12503223]
[1769419665062,13.39475202,2890.5,2889.2,13.12502241]
[1769419665272,13.36954983,2890.3,2889.3,13.57223344]
[1769419665591,1.3394752,2890.4,2889.1,0.86530043]
[1769419665592,13.36954983,2890.2,2889.1,12.2597312]
[1769419667260,13.36954983,2890.4,2889.1,13.12503526]
[1769419667460,14.234488,2890.4,2889.1,12.2597312]
[1769419667696,20.584488,2890.4,2889.1,12.2597312]
[1769419667883,19.71954983,2890.4,2889.1,12.2597312]
[1769419668098,2.0469752,2890.3,2889.1,14.35102293]
[1769419668276,2.0469752,2890.3,2889.1,13.48570432]
[1769419668985,2.0469752,2890.3,2889.1,14.35101847]
[1769419669421,2.0469752,2890.3,2889.1,14.35102537]
[1769419670422,2.0469752,2890.3,2889.1,13.48570432]
[1769419670603,2.26314774,2890.2,2889.1,13.48570432]
[1769419671579,15.63269757,2890.2,2889.1,13.48570432]
[1769419671772,15.63269757,2890.2,2889.1,12.2597312]
[1769419671972,16.49769181,2890.2,2889.1,12.2597312]
[1769419672671,15.63269757,2890.2,2889.1,12.2597312]
[1769419673467,0.001,2890.1,2889.1,12.2597312]
[1769419681317,0.001,2890.1,2889.1,13.12504204]
[1769419681517,0.001,2890.1,2889.3,12.2597312]
[1769419683520,0.001,2890.1,2889.3,12.9847312]
[1769419684524,0.001,2890.1,2889.3,13.84998927]
[1769419684694,0.001,2890.1,2889.3,12.9847312]
[1769419685707,0.001,2890.1,2889.3,13.8499923]
[1769419685910,0.001,2890.1,2889.5,12.16662628]
[1769419686110,0.001,2890.0,2889.5,12.16662628]
[1769419686920,12.5999514,2890.0,2889.3,0.002]
[1769419687119,0.001,2890.0,2889.3,12.20323673]
[1769419687294,0.001,2890.0,2889.5,12.16662628]
[1769419691420,0.001,2890.0,2889.3,13.6792295]
[1769419692396,0.001,2890.0,2889.3,14.5444771]
[1769419696695,0.001,2890.0,2889.4,12.20123554]
[1769419696926,0.001,2890.5,2889.6,12.16662628]
[1769419697113,0.001,2890.5,2889.8,12.16662628]
[1769419699440,0.001,2890.5,2889.8,13.03173391]
[1769419701233,0.001,2890.5,2889.8,12.16662628]
[1769419701745,0.001,2890.5,2889.8,13.03173537]
[1769419704813,0.001,2890.5,2889.8,13.03173528]
[1769419705013,0.001,2890.5,2890.0,12.53328152]
[1769419708455,0.001,2890.5,2890.0,13.39832718]
[1769419708760,0.001,2890.5,2890.0,13.39833087]
[1769419709055,0.001,2890.5,2890.0,12.53328152]
[1769419710140,0.001,2890.5,2889.9,0.54956749]
[1769419710483,0.001,2890.5,2890.0,0.725]
[1769419710822,0.001,2890.5,2890.0,0.727]
[1769419711144,0.001,2890.3,2890.0,0.727]
[1769419711962,0.001,2890.5,2890.1,12.53328152]
[1769419717069,0.001,2890.5,2890.0,2.0395042]
[1769419717365,0.001,2890.5,2890.0,0.727]
[1769419718349,12.24767649,2890.5,2890.0,0.727]
[1769419718552,0.001,2890.5,2890.0,0.727]
[1769419719662,0.001,2890.5,2890.0,13.73428729]
[1769419723074,0.001,2890.5,2890.0,0.727]
[1769419725274,0.001,2890.5,2890.2,0.002]
[1769419725498,0.001,2890.3,2890.2,0.002]
[1769419725677,0.001,2890.5,2890.2,0.002]
[1769419726480,0.001,2890.5,2890.2,1.37562873]
[1769419727649,0.001,2890.5,2890.2,14.38291602]
[1769419728358,0.001,2890.5,2890.2,1.37562873]
[1769419728559,0.001,2890.5,2890.2,13.00928729]
[1769419731790,0.001,2890.5,2890.2,0.002]
[1769419732279,12.24767649,2890.5,2890.0,0.002]
[1769419737192,12.24767649,2890.5,2890.2,0.001]
[1769419737390,1.22476765,2890.4,2890.2,0.001]
[1769419737584,0.001,2890.3,2890.2,0.001]
[1769419741089,0.001,2890.3,2890.0,0.001]
[1769419741090,12.24767649,2890.3,2890.0,0.001]
[1769419741258,0.001,2890.3,2890.0,3.12e-06]
[1769419741461,1.34834441,2890.3,2890.0,3.12e-06]
[1769419741656,0.001,2890.3,2890.0,3.12e-06]
[1769419743697,0.001,2890.3,2889.8,0.65243113]
[1769419746665,0.001,2890.3,2889.8,14.11332698]
[1769419749298,0.001,2890.3,2890.0,0.002]
[1769419754809,0.001,2890.3,2889.8,14.1143301]
[1769419755713,0.001,2890.3,2889.8,0.65343425]
[1769419756485,1.25554128,2890.2,2889.8,0.65343425]
[1769419757197,0.001,2890.3,2889.8,0.65343425]
[1769419758191,0.001,2890.3,2889.8,0.13379487]
[1769419758400,0.001,2890.3,2889.8,0.05689136]
[1769419758693,0.001,2890.3,2889.8,0.002]
[1769419761323,0.001,2890.1,2889.8,0.002]
[1769419763043,0.001,2890.1,2889.8,13.38089515]
[1769419763526,0.001,2890.3,2890.0,13.37889515]
[1769419769009,0.001,2890.5,2889.9,13.37889515]
[1769419769209,0.001,2890.7,2890.3,13.37889515]
[1769419772640,0.001,2890.5,2890.3,13.37889515]
[1769419774712,0.001,2890.7,2890.4,13.23839498]
[1769419778431,0.001,2890.7,2889.9,14.82845451]
[1769419778633,0.001,2890.7,2890.1,13.23839498]
[1769419784439,0.001,2890.7,2890.4,13.23839498]
[1769419784634,0.001,2890.5,2890.4,13.23839498]
[1769419790529,0.001,2891.1,2890.4,13.23839498]
[1769419792768,0.001,2891.1,2890.4,13.96339498]
[1769419792968,0.001,2891.1,2890.6,13.23839498]
[1769419796858,0.001,2891.1,2890.6,13.24039498]
[1769419797168,0.001,2890.9,2890.6,13.24039498]
[1769419798443,0.001,2890.9,2890.6,0.002]
[1769419801361,0.001,2891.1,2890.6,13.24039498]
[1769419801566,0.001,2891.1,2890.7,14.09595794]
[1769419810168,0.001,2890.9,2890.7,14.09595794]
[1769419811647,0.001,2891.1,2890.7,14.09595794]
[1769419813046,0.001,2891.1,2890.7,14.04595794]
[1769419814278,6.35,2891.6,2890.9,12.90689153]
[1769419814479,18.83564287,2891.8,2890.9,12.90689153]
[1769419814683,20.71920716,2891.8,2890.9,14.43731895]
[1769419815085,20.71920716,2891.8,2890.9,14.38731895]
[1769419815282,18.83564287,2891.8,2890.9,14.38731895]
[1769419815458,6.35,2891.8,2890.9,14.38731895]
[1769419815651,6.35,2891.8,2890.9,15.25208236]
[1769419816475,12.48564287,2892.2,2890.9,15.25208236]
[1769419816674,12.50984506,2892.2,2890.9,15.25208236]
[1769419816858,14.48468663,2892.2,2891.1,12.95689153]
[1769419818290,6.35,2892.3,2891.2,12.29500074]
[1769419818488,13.02179097,2892.2,2891.2,12.29500074]
[1769419819484,13.02179097,2891.6,2890.8,0.725]
[1769419819675,13.02179097,2891.6,2890.4,13.02200074]
[1769419819878,13.02179097,2891.6,2890.5,0.03459609]
[1769419820083,13.02179097,2891.6,2890.4,13.87352216]
[1769419820271,13.02179097,2891.6,2890.5,12.32959683]
[1769419820457,13.02179097,2891.4,2890.5,12.29500074]
[1769419821697,13.02179097,2891.4,2890.9,0.002]
[1769419825464,13.02179097,2891.4,2890.6,0.002]
[1769419827798,13.02179097,2891.2,2890.6,0.002]
[1769419828603,0.725,2891.4,2890.6,12.29700074]
[1769419828800,0.96987966,2891.4,2890.6,12.29700074]
[1769419829003,0.725,2891.4,2890.6,12.29700074]
[1769419829784,13.05638721,2891.6,2890.6,12.29700074]
[1769419829785,13.74679097,2891.6,2890.6,12.29700074]
[1769419829976,13.02179097,2891.6,2890.6,12.29700074]
[1769419830378,13.02179097,2891.4,2890.6,0.002]
[1769419830689,0.03459624,2891.3,2890.6,0.002]
[1769419831000,14.32742969,2891.2,2890.6,0.002]
[1769419833900,13.02179097,2891.0,2890.6,0.002]
[1769419835975,11.76999748,2890.8,2890.0,0.002]
[1769419836689,11.79419967,2890.7,2890.0,0.002]
[1769419839500,11.76999748,2890.7,2890.0,0.002]
[1769419839705,1.17699975,2890.6,2890.0,0.002]
[1769419841521,1.17699975,2890.6,2889.8,12.05182281]
[1769419841893,12.51919967,2890.9,2890.0,12.09782281]
[1769419842102,0.03459624,2890.8,2890.0,12.09782281]
[1769419842920,12.51919967,2890.9,2890.0,12.04782281]
[1769419843424,11.79419967,2890.9,2890.0,12.04782281]
[1769419843721,11.79419967,2890.7,2889.6,12.09782281]
[1769419843895,0.02420219,2890.5,2889.6,12.09782281]
[1769419845007,0.02420219,2890.5,2890.2,0.002]
[1769419845429,11.79419967,2890.5,2890.0,0.002]
[1769419845671,11.79419967,2890.1,2889.5,0.002]
[1769419845832,11.79419967,2889.9,2889.5,0.002]
[1769419847588,11.79419967,2889.9,2889.5,0.001]
[1769419848104,11.79419967,2889.9,2889.3,0.00116645]
[1769419848892,11.79419967,2889.9,2888.9,12.09982281]
[1769419848893,11.79419967,2889.9,2888.9,12.05298926]
[1769419849094,1.17941997,2889.8,2888.9,12.05298926]
[1769419849335,1.17941997,2889.8,2888.9,12.00298926]
[1769419851054,12.94941745,2889.8,2888.9,12.00298926]
[1769419855352,12.94941745,2889.8,2888.8,0.002]
[1769419855956,12.94941745,2889.8,2888.8,12.09982281]
[1769419856125,1.38387068,2889.7,2888.8,12.09982281]
[1769419857229,0.001,2889.6,2888.8,12.09982281]
[1769419859866,11.77099748,2889.6,2888.8,12.04982281]
[1769419860071,11.77099748,2889.6,2888.6,12.09982281]
[1769419860231,11.79419967,2889.5,2888.6,0.002]
[1769419860434,13.10968649,2889.5,2888.6,0.002]
[1769419861161,11.76999748,2889.2,2888.6,0.002]
[1769419862264,0.725,2889.3,2888.6,12.09982281]
[1769419865085,0.75959624,2889.4,2888.6,12.09982281]
[1769419865392,1.38692827,2889.3,2888.6,12.09982281]
[1769419867880,13.78288308,2889.3,2888.6,0.002]
[1769419868652,13.78288308,2889.3,2888.8,0.002]
[1769419869380,12.420157,2889.2,2888.8,0.001]
[1769419869683,12.420157,2889.0,2888.5,0.002]
[1769419869979,12.420157,2889.0,2888.5,0.001]
[1769419870354,12.420157,2889.0,2888.5,3.11e-06]
[1769419871075,0.725,2888.9,2888.5,3.11e-06]
[1769419872255,13.12095481,2888.9,2888.5,3.11e-06]
[1769419872456,1.3145157,2888.8,2888.5,3.11e-06]
[1769419872683,3.48537013,2889.2,2888.5,3.11e-06]
[1769419872684,0.13857973,2889.9,2888.5,3.11e-06]
[1769419872889,0.02420219,2892.2,2888.5,3.11e-06]
[1769419872890,0.54436258,2893.6,2890.0,0.1806853]
[1769419873154,0.54436258,2893.6,2892.3,4.19197337]
[1769419873155,0.02420219,2893.4,2892.3,4.19197337]
[1769419873350,0.02420219,2893.1,2892.3,4.19197337]
[1769419873597,0.02420219,2892.5,2891.7,0.725]
[1769419873756,0.02420219,2892.6,2891.9,30.0]
[1769419874104,0.02420219,2892.3,2891.7,30.0]
[1769419874391,0.02420219,2892.1,2891.0,0.86475268]
[1769419874551,0.02420219,2891.9,2891.4,30.0]
[1769419875156,0.02420219,2891.5,2890.8,30.0]
[1769419875952,0.02420219,2890.9,2890.0,1.90219527]
[1769419876159,0.02420219,2890.7,2890.0,1.04571933]
[1769419876461,0.02049069,2890.7,2890.3,30.0]
[1769419876697,0.02049069,2890.7,2890.2,30.0]
[1769419876861,0.02049069,2890.7,2890.1,0.86501352]
[1769419877055,0.725,2891.2,2890.1,0.45060097]
[1769419877369,0.02420219,2891.3,2890.4,30.0]
[1769419877370,0.74920219,2891.3,2890.4,30.0]
[1769419877790,0.02420219,2891.1,2890.4,30.0]
[1769419878668,0.02420219,2891.3,2890.4,30.0]
[1769419878883,0.02420219,2891.3,2890.4,30.86491968]
[1769419878884,0.02420219,2891.1,2890.4,30.86491968]
[1769419879383,0.02420219,2891.3,2890.6,30.0]
[1769419879691,0.02420219,2891.3,2890.7,3.0]
[1769419879854,0.02420219,2891.3,2890.4,0.86491968]
[1769419880058,0.02420219,2891.3,2890.6,30.0]
[1769419880584,0.02420219,2891.3,2890.6,30.86485349]
[1769419880753,0.001,2891.1,2890.6,30.86485349]
[1769419881159,0.001,2891.1,2890.6,30.0]
[1769419881589,0.02420219,2891.0,2890.0,3.46019593]
[1769419881788,0.02420219,2890.8,2890.2,30.86497283]
[1769419881962,0.02420219,2891.0,2890.3,0.86495603]
[1769419882293,0.02420219,2890.8,2890.3,0.86495603]
[1769419882600,0.001,2891.1,2890.5,0.86488931]
[1769419882800,0.02420219,2891.0,2890.5,0.86488931]
[1769419882962,0.02420219,2891.0,2890.5,1.29736246]
[1769419883279,0.001,2891.1,2890.5,1.29736246]
[1769419883459,0.02420219,2891.0,2890.5,1.29736246]
[1769419883960,0.02520219,2891.1,2890.5,0.43247315]
[1769419885092,0.02520219,2891.1,2890.5,1.2973485]
[1769419886680,0.001,2891.1,2890.6,0.47570745]
[1769419887181,0.725,2891.4,2890.7,0.86484242]
[1769419887496,13.06912508,2891.6,2890.8,0.0345925]
[1769419887701,0.02420219,2891.7,2891.0,30.0]
[1769419887862,0.02420219,2891.8,2891.0,30.0]
[1769419888068,0.02420219,2891.8,2890.7,0.86484242]
[1769419888069,0.02420219,2891.6,2891.1,3.0]
[1769419888270,0.74920219,2891.8,2890.7,0.89943611]
[1769419888491,0.02420219,2891.6,2891.0,30.0]
[1769419888680,0.74920219,2891.8,2891.0,30.0]
[1769419889005,0.02420219,2891.6,2891.0,30.0]
[1769419889910,0.02420219,2891.6,2891.1,0.86472276]
[1769419890684,0.02420219,2891.6,2890.9,3.49369789]
[1769419890685,0.02420219,2891.8,2891.0,0.86473155]
[1769419890889,0.02420219,2891.8,2891.1,30.0]
[1769419891996,0.02420219,2891.8,2891.1,30.86469682]
[1769419892166,0.02420219,2891.6,2891.1,30.0]
[1769419892367,13.09382727,2891.4,2890.7,30.0]
[1769419892608,13.09382727,2891.2,2890.7,30.0]
[1769419892901,13.09011008,2891.2,2890.9,0.002]
[1769419893114,0.02420219,2891.2,2890.9,0.002]
[1769419894783,0.0170237,2891.4,2890.9,0.002]
[1769419894984,0.02420219,2891.2,2890.9,0.002]
[1769419902943,0.725,2891.1,2890.9,0.002]
[1769419903253,0.725,2891.0,2890.9,0.002]
[1769419903452,0.725,2891.1,2890.9,30.002]
[1769419903617,0.725,2891.2,2890.9,30.002]
[1769419904035,13.06776648,2891.5,2890.9,30.002]
[1769419904236,13.79276648,2891.5,2891.0,0.86475268]
[1769419904409,1.31280295,2891.6,2891.0,0.86475268]
[1769419904619,0.726,2891.6,2891.0,0.86475268]
[1769419905832,0.75020219,2891.6,2891.1,0.002]
[1769419906311,13.09196867,2891.2,2890.9,0.002]
[1769419911723,13.06776648,2891.2,2890.9,0.002]
[1769419912050,0.725,2891.1,2890.9,0.002]
[1769419912445,13.79276648,2891.2,2890.9,0.002]
[1769419913354,0.725,2891.2,2890.9,0.002]
[1769419915144,13.06676648,2891.3,2890.9,0.002]
[1769419915459,13.81596867,2891.3,2890.9,0.002]
[1769419916855,13.06576648,2891.0,2890.1,0.86500368]
[1769419917021,13.06576648,2890.5,2890.0,0.86503798]
[1769419917226,13.06576648,2890.5,2889.8,3.46043668]
[1769419917451,13.06576648,2890.5,2890.0,0.86504513]
[1769419917651,13.06576648,2890.5,2889.9,3.46031491]
[1769419917954,13.06576648,2890.5,2890.0,0.86505094]
[1769419920941,13.06576648,2890.5,2890.0,0.8650519]
[1769419921731,13.06576648,2890.1,2889.7,0.002]
[1769419923041,13.08996867,2890.0,2889.7,0.002]
[1769419924364,13.06576648,2890.3,2889.7,0.002]
[1769419924531,13.79076648,2890.3,2889.7,0.002]
[1769419924964,13.08996867,2890.0,2889.7,0.002]
[1769419925363,13.08996867,2890.0,2889.5,0.002]
[1769419926047,0.02420219,2889.8,2889.5,0.002]
[1769419926368,13.06476648,2889.8,2889.5,0.002]
[1769419929082,13.08896867,2889.7,2889.5,0.002]
[1769419929778,14.39786554,2889.7,2888.8,0.002]
[1769419929978,13.06376648,2889.1,2888.8,0.002]
[1769419932377,0.74920219,2889.4,2888.8,0.002]
[1769419932378,13.06376648,2889.3,2888.8,0.002]
[1769419934172,13.06376648,2889.1,2888.8,0.002]
[1769419934374,13.06276648,2888.9,2888.5,3.11e-06]
[1769419934561,13.06276648,2888.7,2888.5,3.11e-06]
[1769419935148,13.06276648,2888.9,2888.5,3.11e-06]
[1769419937783,13.06276648,2888.7,2888.5,3.11e-06]
[1769419939591,13.06276648,2888.7,2888.1,0.86762099]
[1769419939592,13.06276648,2888.5,2888.1,0.002]
[1769419940662,13.06276648,2888.5,2888.3,0.002]
[1769419943372,0.725,2888.6,2888.1,0.002]
[1769419943373,0.02420219,2888.4,2888.1,0.002]
[1769419943575,13.06176648,2888.3,2888.1,0.002]
[1769419944088,13.06176648,2888.3,2887.6,0.86577088]
[1769419944289,13.06176648,2888.3,2887.7,0.43634864]
[1769419944694,13.06176648,2888.3,2887.6,0.86577088]
[1769419945463,13.06176648,2888.3,2887.4,3.46528415]
[1769419946184,13.06176648,2888.3,2887.5,0.03463203]
[1769419947395,13.06176648,2888.3,2887.5,1.91309906]
[1769419947594,13.06176648,2888.3,2887.6,0.86577088]
[1769419947892,13.06176648,2888.3,2887.7,0.62419535]
[1769419948416,13.06076648,2888.5,2887.7,0.62419535]
[1769419948566,0.02420219,2888.4,2887.7,0.62419535]
[1769419948915,13.06076648,2888.5,2887.6,0.86577088]
[1769419949214,13.06076648,2888.5,2887.6,2.74423791]
[1769419949395,13.06076648,2889.0,2887.8,1.87846703]
[1769419949565,13.06076648,2889.0,2887.9,1.91309426]
[1769419949767,13.06076648,2889.0,2888.0,0.86565096]
[1769419949965,13.06076648,2889.0,2888.1,0.62413491]
[1769419950216,13.06076648,2888.8,2888.1,0.62413491]
[1769419950848,0.02420219,2888.9,2887.5,3.46316992]
[1769419950849,13.06076648,2888.4,2887.5,3.46316992]
[1769419951097,13.06076648,2888.4,2887.6,0.86575485]
[1769419951466,13.06076648,2888.4,2887.7,0.86572106]
[1769419951907,13.06076648,2888.4,2887.8,0.86571092]
[1769419952112,13.06076648,2888.4,2887.7,0.86571966]
[1769419952307,13.06076648,2888.4,2887.7,1.29859283]
[1769419952782,13.06076648,2888.6,2887.7,1.29859283]
[1769419953108,13.06076648,2888.6,2887.8,0.03462843]
[1769419953598,0.001,2888.3,2887.8,0.03462843]
[1769419955296,0.001,2888.3,2887.9,0.86568094]
[1769419955500,0.001,2888.3,2887.9,1.34548145]
[1769419957601,13.06076648,2889.0,2888.0,1.91309306]
[1769419959413,13.06076648,2889.4,2888.2,1.87846703]
[1769419959614,13.06076648,2889.9,2888.4,1.87846703]
[1769419959915,13.06076648,2889.9,2888.6,1.87846703]
[1769419960508,13.06176648,2890.1,2888.6,1.87846703]
[1769419960697,13.06176648,2890.1,2888.8,1.87846703]
[1769419961317,13.06176648,2890.1,2889.0,1.87846703]
[1769419961518,13.06176648,2890.1,2889.1,0.27438483]
[1769419961824,13.06176648,2890.1,2889.1,1.87846703]
[1769419962283,0.001,2890.1,2889.1,1.87846703]
[1769419962707,0.001,2890.1,2889.2,1.87846703]
[1769419963415,0.001,2890.1,2889.3,0.86526148]
[1769419966028,0.001,2890.1,2889.3,2.74372851]
[1769419966235,0.001,2890.1,2889.4,0.62047744]
[1769419966732,13.06176648,2890.1,2889.4,0.62047744]
[1769419967131,0.001,2889.9,2889.4,0.62047744]
[1769419967510,0.001,2889.9,2889.5,0.86520159]
[1769419968629,13.02786427,2890.1,2889.4,1.48569868]
[1769419968831,14.3306507,2890.1,2889.4,0.86522124]
[1769419969139,14.3306507,2890.1,2889.4,0.86522718]
[1769419970006,14.3306507,2890.1,2889.2,0.86529143]
[1769419970209,13.02786427,2890.1,2889.3,0.03461045]
[1769419971265,13.02786427,2890.1,2889.2,14.04024363]
[1769419971967,13.02786427,2890.1,2889.2,0.86529143]
[1769419972186,13.02786427,2890.1,2889.2,0.89990308]
[1769419972389,13.02686427,2889.9,2889.2,0.86529143]
[1769419972680,13.02686427,2889.9,2889.1,0.86530687]
[1769419972830,13.02686427,2889.9,2889.0,3.46137588]
[1769419973242,13.02686427,2889.9,2889.1,0.8653036]
[1769419973456,14.33207092,2889.9,2889.1,0.8653036]
[1769419973965,14.33207092,2889.9,2889.1,0.86531605]
[1769419974177,13.02686427,2889.7,2889.0,0.03461405]
[1769419974372,13.02686427,2889.7,2888.8,0.86539796]
[1769419974558,14.46249158,2889.7,2888.8,0.86539796]
[1769419974742,13.02686427,2889.3,2888.5,1.05678368]
[1769419974943,13.01597415,2889.3,2888.6,0.86545507]
[1769419975151,13.01597415,2889.3,2888.5,3.46200324]
[1769419975152,13.01597415,2889.3,2888.7,0.8654386]
[1769419975885,13.01597415,2889.3,2888.6,0.86545706]
[1769419976241,13.01597415,2889.3,2888.5,0.86550112]
[1769419976442,13.02686427,2889.1,2888.3,0.86554315]
[1769419976769,0.02420219,2889.2,2888.3,0.86554315]
[1769419976770,13.02686427,2888.9,2888.3,0.43279036]
[1769419977070,13.02686427,2888.9,2888.1,0.86560538]
[1769419977233,13.02686427,2888.9,2887.9,3.94248073]
[1769419977234,13.02686427,2888.9,2888.2,0.8655833]
[1769419977440,13.02686427,2888.9,2888.0,0.002]
[1769419977642,13.02686427,2888.9,2888.3,0.86554469]
[1769419977848,13.02686427,2888.9,2888.2,0.86556919]
[1769419978338,13.02686427,2888.9,2888.1,0.86562099]
[1769419978544,13.02686427,2888.9,2888.1,1.35008193]
[1769419979377,13.02686427,2888.9,2888.4,0.002]
[1769419982889,13.02686427,2889.1,2888.4,0.002]
[1769419985000,13.948034,2889.0,2888.4,0.002]
[1769419985196,13.92383181,2888.8,2888.4,0.002]
[1769419986496,13.92383181,2888.6,2888.4,0.002]
[1769419986675,13.92383181,2888.6,2888.1,0.002]
[1769419991490,13.92383181,2888.6,2888.3,0.002]
[1769419994814,0.725,2888.7,2888.3,0.002]
[1769419995011,13.92383181,2888.8,2888.3,0.002]
[1769419995183,14.64883181,2888.8,2888.3,0.002]
[1769419996081,0.001,2888.9,2888.3,0.002]
[1769419996284,0.001,2888.9,2888.3,14.02469453]
[1769419996620,0.001,2888.9,2888.3,13.99007209]
[1769419996816,13.92383181,2888.7,2888.3,0.002]
[1769419997207,13.92383181,2888.7,2888.1,0.002]
[1769419997208,13.92383181,2888.5,2888.1,0.002]
[1769420000115,12.88592381,2888.4,2888.1,0.002]
[1769420000889,12.86172162,2888.4,2888.1,0.002]
[1769420001091,12.86172162,2888.6,2888.1,0.002]
[1769420003592,12.86272162,2888.9,2888.1,0.002]
[1769420003887,12.86272162,2888.9,2888.3,0.002]
[1769420011599,12.88592381,2888.8,2888.3,0.002]
[1769420012421,12.86172162,2888.8,2888.3,0.002]
[1769420012699,0.001,2888.9,2888.3,0.002]
[1769420014234,12.86272162,2888.9,2888.3,0.002]
[1769420014438,14.151414,2888.9,2888.3,0.002]
[1769420015329,0.001,2888.7,2888.3,0.002]
[1769420020015,13.94413071,2888.7,2888.3,0.002]
[1769420022556,13.9673329,2888.5,2888.0,0.002]
[1769420022730,13.94313071,2888.2,2888.0,0.002]
[1769420023125,0.02420219,2888.3,2888.0,0.002]
[1769420024250,15.339864,2888.4,2888.0,0.002]
[1769420026163,13.9673329,2888.3,2888.0,0.002]
[1769420027430,13.94313071,2888.3,2888.0,0.002]
[1769420027827,15.55203733,2888.3,2888.0,0.002]
[1769420029464,13.94313071,2888.1,2887.8,0.002]
[1769420029635,13.94313071,2888.1,2887.5,0.002]
[1769420030256,13.94313071,2887.9,2887.5,0.002]
[1769420034835,13.94313071,2888.2,2887.5,0.002]
[1769420035039,14.66813071,2888.4,2887.5,15.52977867]
[1769420036261,0.001,2888.7,2887.7,13.73388766]
[1769420036439,14.66913071,2888.7,2887.8,13.73388766]